fUSD/lending_fUSD_20240214
["ID","MTS","AMOUNT","RATE_DAILY","PERIOD"]
[313971402,1707892077079,2000.0,0.00021808,2]
[313971414,1707892119161,157.94506205,0.000219,2]
[313971421,1707892143668,-11000.0,0.00021968,2]
[313971447,1707892174241,206.0,0.0002124,2]
[313971453,1707892201457,-250.0,0.00021918,2]
[313971454,1707892201476,-10502.88,0.00021968,2]
[313971455,1707892201496,-150.98626039,0.00022,2]
[313971456,1707892201517,-150.0,0.00022,2]
[313971457,1707892201539,-157.94506201,0.00022011,2]
[313971458,1707892202431,150.0,0.00021967,2]
[313971459,1707892202756,150.0,0.00021968,2]
[313971460,1707892202947,150.0,0.00021968,2]
[313971461,1707892203149,150.0,0.00021968,2]
[313971462,1707892203928,150.0,0.00021968,2]
[313971463,1707892203981,150.0,0.00021968,2]
[313971464,1707892204035,150.0,0.00021968,2]
[313971465,1707892204150,150.0,0.00021968,2]
[313971466,1707892204288,206.0,0.0002124,2]
[313971467,1707892204317,150.0,0.00021968,2]
[313971468,1707892204506,150.0,0.00021968,2]
[313971469,1707892204678,150.0,0.00021968,2]
[313971470,1707892204884,150.0,0.00021968,2]
[313971471,1707892205073,150.0,0.00021968,2]
[313971472,1707892205264,150.0,0.00021968,2]
[313971473,1707892205442,150.0,0.00021968,2]
[313971474,1707892205555,1309.25056633,0.00021748,2]
[313971475,1707892205651,150.0,0.00021968,2]
[313971476,1707892205840,150.0,0.00021968,2]
[313971477,1707892206069,150.0,0.00021968,2]
[313971478,1707892206240,150.0,0.00021968,2]
[313971479,1707892206427,150.0,0.00021968,2]
[313971480,1707892206621,150.0,0.00021968,2]
[313971481,1707892206792,150.0,0.00021968,2]
[313971482,1707892206962,150.0,0.00021968,2]
[313971483,1707892207153,150.0,0.00021968,2]
[313971484,1707892207348,150.0,0.00021968,2]
[313971485,1707892207538,150.0,0.00021968,2]
[313971486,1707892207750,150.0,0.00021968,2]
[313971487,1707892207899,150.0,0.00021968,2]
[313971488,1707892208109,150.0,0.00021968,2]
[313971489,1707892208321,150.0,0.00021968,2]
[313971490,1707892208519,150.0,0.00021968,2]
[313971491,1707892208959,150.0,0.00021968,2]
[313971492,1707892209065,301.856441,0.00021808,2]
[313971493,1707892209168,150.0,0.00021968,2]
[313971494,1707892209375,271.98816345,0.00021968,2]
[313971495,1707892211650,500.0,0.00021761,2]
[313971496,1707892223431,170.2,0.00021775,2]
[313971502,1707892232086,-1000.0,0.00022033,2]
[313971503,1707892232095,-250.0,0.00022033,2]
[313971504,1707892232106,-196.85,0.00022094,2]
[313971505,1707892232115,-157.94506201,0.00022122,2]
[313971506,1707892232125,-150.24,0.00022146,2]
[313971507,1707892232135,-150.24,0.00022228,2]
[313971508,1707892232144,-157.94506201,0.00022233,2]
[313971509,1707892232154,-257.93,0.00022233,2]
[313971510,1707892232164,-2487.31356369,0.00022308,2]
[313971511,1707892232173,-150.24,0.00022311,2]
[313971512,1707892232183,-150.99,0.00022327,2]
[313971513,1707892232192,-239.17,0.00022327,2]
[313971514,1707892232201,-157.94506201,0.00022344,2]
[313971515,1707892232210,-150.24,0.00022393,2]
[313971516,1707892232220,-9502.28814073,0.000224,2]
[313971517,1707892232233,-284.72736181,0.000224,2]
[313971518,1707892232246,-298.69050621,0.000224,2]
[313971519,1707892232257,-501.30887402,0.000224,2]
[313971520,1707892232274,-1000.0,0.000224,2]
[313971521,1707892232287,-2000.16839021,0.000224,2]
[313971522,1707892232301,-744.64168612,0.000224,2]
[313971523,1707892232313,-473.60372956,0.000224,2]
[313971524,1707892232330,-428.50808,0.000224,2]
[313971525,1707892232359,-504.69421276,0.000224,2]
[313971526,1707892232370,-7171.36901858,0.000224,2]
[313971527,1707892232379,-157.94506201,0.00022456,2]
[313971528,1707892232389,-150.24,0.00022475,2]
[313971529,1707892232398,-150.24,0.00022558,2]
[313971530,1707892232407,-157.94506201,0.00022567,2]
[313971531,1707892232417,-150.0,0.00022627,2]
[313971532,1707892232426,-150.24,0.0002264,2]
[313971533,1707892232435,-157.94506201,0.00022678,2]
[313971534,1707892232445,-150.24,0.00022723,2]
[313971535,1707892232454,-157.94506201,0.00022789,2]
[313971536,1707892232465,-150.24,0.00022805,2]
[313971537,1707892232475,-499.99,0.00022843,2]
[313971538,1707892232484,-150.24,0.00022888,2]
[313971539,1707892232494,-1000.0,0.000229,2]
[313971540,1707892232504,-205.17249456,0.000229,2]
[313971541,1707892232514,-1620.74,0.000229,2]
[313971542,1707892232524,-189.03109604,0.000229,2]
[313971543,1707892232533,-1359.8816,0.000229,2]
[313971544,1707892232744,-179.88746716,0.000229,2]
[313971545,1707892232754,-342.83055216,0.000229,2]
[313971546,1707892232763,-157.94506201,0.000229,2]
[313971547,1707892232772,-163.38711698,0.000229,2]
[313971548,1707892232781,-169.96997148,0.000229,2]
[313971549,1707892232791,-426.26818306,0.000229,2]
[313971550,1707892232801,-241.1,0.00022904,2]
[313971551,1707892232811,-150.24,0.0002297,2]
[313971552,1707892232820,-1028.49807035,0.00022997,2]
[313971553,1707892232830,-9088.17081912,0.00022998,2]
[313971554,1707892232839,-201.14503102,0.00022998,2]
[313971555,1707892232849,-155.2998956,0.00022998,2]
[313971556,1707892232858,-901.99295247,0.00022998,2]
[313971557,1707892232867,-13176.23409754,0.00022998,2]
[313971558,1707892232877,-327.72204136,0.00022998,2]
[313971559,1707892232886,-179.4876846,0.00022999,2]
[313971560,1707892232895,-155.22118499,0.00022999,2]
[313971561,1707892232905,-25709.97282128,0.00022999,2]
[313971562,1707892232914,-3833.48804196,0.00023,3]
[313971563,1707892232930,-49621.01982386,0.00023,3]
[313971564,1707892232966,-1272.22164415,0.00023,3]
[313971565,1707892232994,-1016.27333657,0.00023,3]
[313971574,1707892238125,-232.55656092,0.0002299,2]
[313971576,1707892238135,-12417.54373908,0.00023,3]
[313971585,1707892238233,-2850.93961544,0.00023,3]
[313971593,1707892238297,-30274.69432042,0.00023,3]
[313971599,1707892238450,-6451.36263048,0.00023,3]
[313971600,1707892238460,-2578.10463287,0.00023,2]
[313971615,1707892240771,-8094.10953144,0.00023,2]
[313971616,1707892240827,-350.95239417,0.00023,2]
[313971617,1707892240840,-3136.74692172,0.00023,2]
[313971618,1707892240883,-5237.29745642,0.00023,2]
[313971619,1707892240941,-392.15630978,0.00023,2]
[313971620,1707892241318,2515.26528364,0.0002,2]
[313971621,1707892241690,-110708.50778775,0.00023,2]
[313971622,1707892241702,-66753.76458943,0.00023,2]
[313971632,1707892243270,-898.17017497,0.00023,2]
[313971639,1707892246711,-239.30480126,0.000229,2]
[313971640,1707892246721,-2833.4392492,0.00023,2]
[313971641,1707892246734,-26481.38233323,0.00023,2]
[313971642,1707892246756,-600.96064608,0.00023,2]
[313971643,1707892246801,-118811.32310159,0.00023,2]
[313971644,1707892259298,2515.26528364,0.0002,2]
[313971645,1707892261204,297.47,0.00021449,2]
[313971646,1707892279312,2511.8456439,0.0002,2]
[313971647,1707892413805,203.0,0.0002124,2]
[313971648,1707892417397,2867.26635998,0.000199,2]
[313971649,1707892429619,157.40413539,0.0002,2]
[313971650,1707892440220,155.0,0.0002,2]
[313971651,1707892460226,156.71766194,0.0002,2]
[313971652,1707892549146,1500.0,0.00022276,7]
[313971653,1707892673690,2515.26528364,0.0002,2]
[313971654,1707892695358,2515.26528364,0.0002,2]
[313971655,1707892709569,299.05,0.00019903,2]
[313971656,1707892713362,2399.7819257,0.0002,2]
[313971657,1707892745951,23900.0,0.00021725,2]
[313971658,1707892776206,160.6475486,0.000219,2]
[313971659,1707892803075,-420.51851356,0.00021999,2]
[313971660,1707892803118,-352.58,0.00022,2]
[313971661,1707892803163,-1400.0,0.00022,2]
[313971662,1707892803211,-299.09,0.00022144,2]
[313971663,1707892803257,-299.05,0.00022167,2]
[313971664,1707892803302,-223.50259554,0.000222,2]
[313971665,1707892803349,-153.87,0.00022232,2]
[313971666,1707892803397,-250.0,0.00022237,2]
[313971667,1707892803439,-1213.67168528,0.00022275,2]
[313971668,1707892803481,-2000.0,0.00022276,2]
[313971669,1707892803525,-153.87,0.00022348,2]
[313971670,1707892803568,-1000.0,0.00022442,2]
[313971671,1707892803610,-331.2,0.00022446,2]
[313971672,1707892803655,-153.87,0.00022464,2]
[313971673,1707892803702,-1213.67168528,0.0002247,2]
[313971674,1707892803744,-1000.0,0.000225,2]
[313971675,1707892803787,-701.43,0.00022519,2]
[313971676,1707892803832,-187.15,0.00022538,2]
[313971677,1707892803874,-153.87,0.00022579,2]
[313971678,1707892803907,-150.0,0.00022612,2]
[313971679,1707892803939,-300.0,0.00022694,2]
[313971680,1707892803972,-150.0,0.00022694,2]
[313971681,1707892804336,-153.87,0.00022695,2]
[313971682,1707892804369,-433.8,0.000227,2]
[313971683,1707892804403,-632.99,0.00022776,2]
[313971684,1707892804436,-1484.57,0.00022776,2]
[313971685,1707892804470,-156.92024776,0.000228,2]
[313971686,1707892804489,-250.0,0.00022805,2]
[313971687,1707892804498,-153.87,0.00022811,2]
[313971688,1707892804507,-16.64851356,0.000229,2]
[313971689,1707892804523,-352.58,0.000229,2]
[313971690,1707892804547,-630.77148644,0.000229,2]
[313971691,1707892804556,-769.22851356,0.000229,2]
[313971692,1707892804571,-299.09,0.000229,2]
[313971693,1707892804586,-299.05,0.000229,2]
[313971694,1707892804602,-223.50259554,0.000229,2]
[313971695,1707892804617,-153.87,0.000229,2]
[313971696,1707892804629,-250.0,0.000229,2]
[313971697,1707892804649,-1213.67168528,0.000229,2]
[313971698,1707892804683,-1791.58720562,0.000229,2]
[313971699,1707892804693,-156.92024776,0.000229,2]
[313971700,1707892804702,-51.49254662,0.000229,2]
[313971701,1707892804722,-118.47742481,0.000229,2]
[313971702,1707892804731,-35.39257519,0.000229,2]
[313971703,1707892804746,-248.78621351,0.000229,2]
[313971704,1707892804756,-153.87,0.00022927,2]
[313971705,1707892804765,-371.12767226,0.00022998,2]
[313971706,1707892804775,-226.21611423,0.00022998,2]
[313971707,1707892804791,-224.30620615,0.00022998,2]
[313971708,1707892804800,-106.89379385,0.00022998,2]
[313971709,1707892804815,-72.16331205,0.00022998,2]
[313971710,1707892804824,-81.70668795,0.00022998,2]
[313971711,1707892804840,-143.01939403,0.00022998,2]
[313971712,1707892804849,-1033.70060886,0.00022998,2]
[313971713,1707892804858,-36.95168239,0.00022998,2]
[313971714,1707892804879,-121.40609838,0.00022998,2]
[313971715,1707892804888,-878.59390162,0.00022998,2]
[313971716,1707892804904,-172.73168268,0.00022998,2]
[313971717,1707892804914,-528.69831732,0.00022998,2]
[313971718,1707892804933,-187.15,0.00022998,2]
[313971719,1707892805007,-153.87,0.00022998,2]
[313971720,1707892805041,-150.0,0.00022998,2]
[313971721,1707892805052,-300.0,0.00022998,2]
[313971722,1707892805064,-150.0,0.00022998,2]
[313971723,1707892805135,-153.87,0.00022998,2]
[313971724,1707892805218,-415.15365752,0.00022998,2]
[313971725,1707892805228,-18.64634248,0.00022998,2]
[313971726,1707892805312,-347.49131027,0.00022998,2]
[313971727,1707892805322,-285.49868973,0.00022998,2]
[313971728,1707892805334,-5.08372455,0.00022998,2]
[313971729,1707892805343,-526.97854074,0.00022998,2]
[313971730,1707892805352,-404.15157209,0.00022998,2]
[313971731,1707892805362,-229.63290443,0.00022998,2]
[313971732,1707892805371,-318.72325819,0.00022998,2]
[313971733,1707892805390,-156.92024776,0.00022998,2]
[313971734,1707892805407,-61.01054516,0.00022998,2]
[313971742,1707893154330,276.93,0.00020361,2]
[313971759,1707893432294,-150.0,0.00022,2]
[313971760,1707893432304,-300.0,0.00022,2]
[313971761,1707893432314,-150.0,0.00022,2]
[313971762,1707893432325,-538.08,0.00022045,2]
[313971763,1707893432334,-250.0,0.0002208,2]
[313971764,1707893432344,-182.9,0.00022109,2]
[313971765,1707893432353,-206.0,0.00022116,2]
[313971766,1707893432363,-150.0,0.00022223,2]
[313971767,1707893432373,-8827.00285759,0.00022224,2]
[313971768,1707893432620,-562.43544538,0.00022224,2]
[313971769,1707893432636,-1101.33165979,0.00022224,2]
[313971770,1707893432649,-492.21325743,0.00022224,2]
[313971771,1707893432662,-385.33323618,0.00022224,2]
[313971772,1707893432678,-5906.63526208,0.00022224,2]
[313971773,1707893432691,-2950.32828155,0.00022224,2]
[313971774,1707893432700,-264.69,0.00022307,2]
[313971775,1707893432709,-150.0,0.00022358,2]
[313971776,1707893432719,-2000.0,0.0002241,2]
[313971777,1707893432729,-153.87,0.00022448,2]
[313971778,1707893432738,-657.61,0.00022494,2]
[313971779,1707893432749,-276.93,0.00022625,2]
[313971780,1707893432758,-1213.67168528,0.00022643,2]
[313971781,1707893432767,-57.90003317,0.00022838,2]
[313971782,1707893432779,-95.96996683,0.00022838,2]
[313971783,1707893432789,-200.0,0.00022898,2]
[313971784,1707893432798,-963.7451,0.000229,2]
[313971786,1707893432807,-376.14957336,0.000229,2]
[313971787,1707893432817,-1383.4426,0.000229,2]
[313971788,1707893432825,-8783.9331,0.000229,2]
[313971789,1707893432835,-169.96997143,0.000229,2]
[313971790,1707893432844,-239.30480124,0.000229,2]
[313971791,1707893432853,-42063.62812186,0.00022998,2]
[313971792,1707893432865,-627.62684945,0.00022998,2]
[313971793,1707893432877,-24294.55694019,0.00022998,2]
[313971794,1707893432887,-339.71359936,0.00022998,2]
[313971795,1707893432896,-641.84696201,0.00022999,2]
[313971796,1707893432906,-218.20880489,0.00022999,2]
[313971797,1707893432915,-7895.097,0.00023,2]
[313971798,1707893432925,-55818.66373952,0.00023,3]
[313971799,1707893432934,-187.0473342,0.00023,3]
[313971800,1707893432944,-193416.70460734,0.00023,2]
[313971801,1707893432955,-4303.44005827,0.00023,2]
[313971802,1707893432967,-3751.69749833,0.00023,2]
[313971803,1707893432979,-271.29633934,0.00023,2]
[313971804,1707893432990,-333.05639567,0.00023,2]
[313971805,1707893433002,-2135.24835581,0.00023,2]
[313971806,1707893433013,-4617.46049009,0.00023,2]
[313971807,1707893433024,-2886.58443646,0.00023,2]
[313971809,1707893440171,-285.49172499,0.00023,2]
[313971810,1707893440183,-1840.01178555,0.00023,2]
[313971811,1707893440219,-374.6249197,0.00023,2]
[313971812,1707893440230,-1028.44487161,0.00023,2]
[313971813,1707893440244,-57366.51280918,0.00023,2]
[313971814,1707893440278,-1029.87608733,0.00023,2]
[313971815,1707893440293,-429.20120241,0.00023,2]
[313971816,1707893440305,-1001.63911029,0.00023,2]
[313971817,1707893440317,-1010.28561703,0.00023,2]
[313971818,1707893440330,-1402.67223142,0.00023,2]
[313971819,1707893440341,-18025.63593087,0.00023,2]
[313971820,1707893440353,-1464.98189673,0.00023,2]
[313971821,1707893440365,-553.19678644,0.00023,2]
[313971822,1707893440380,-3365.46718033,0.00023,2]
[313971823,1707893440391,-2392.36310128,0.00023,2]
[313971824,1707893440402,-4790.82447192,0.00023,2]
[313971825,1707893440416,-664.88675611,0.00023,2]
[313971827,1707893440637,-797.04011047,0.00023,2]
[313971829,1707893440650,-289.4002629,0.00023,2]
[313971830,1707893440675,-16581.3508033,0.00023,2]
[313971831,1707893440687,-2072.13744929,0.00023,2]
[313971832,1707893440716,-56195.00845172,0.00023,2]
[313971833,1707893440728,-40474.80987097,0.00023,2]
[313971838,1707893441053,-353.65999998,0.00023,2]
[313971839,1707893441084,-735.43609094,0.00023,2]
[313971840,1707893441096,-5637.8687285,0.00023,2]
[313971841,1707893441108,-342.58214124,0.00023,2]
[313971842,1707893441158,-816.22100029,0.00023,2]
[313971843,1707893441172,-3303.94373171,0.00023,2]
[313971844,1707893441185,-525.21345931,0.00023,2]
[313971845,1707893441199,-838.48045101,0.00023,2]
[313971846,1707893441212,-2814.42447915,0.00023,2]
[313971847,1707893441230,-543.43566378,0.00023,2]
[313971848,1707893441242,-2809.239999,0.00023,2]
[313971849,1707893441254,-619.40917737,0.00023,2]
[313971850,1707893441266,-1138.50001,0.00023,2]
[313971851,1707893441283,-639.14654176,0.00023,2]
[313971852,1707893442043,-73680.93478051,0.00023,2]
[313971853,1707893442056,-6858.95721472,0.00023,2]
[313971883,1707893443406,-2212.03423884,0.00023,2]
[313971884,1707893443421,-6219.85007388,0.00023,2]
[313971885,1707893443445,-543.33974753,0.00023,2]
[313971886,1707893443474,-653.03474555,0.00023,2]
[313971887,1707893443492,-3013.31927162,0.00023,2]
[313971888,1707893443504,-1901.14835972,0.00023,2]
[313971889,1707893443516,-2478.50295757,0.00023,2]
[313971890,1707893443529,-1104.81798913,0.00023,2]
[313971891,1707893443543,-1197.74869222,0.00023,2]
[313971892,1707893443572,-9252.27534733,0.00023,2]
[313971893,1707893443584,-1425.81963666,0.00023,2]
[313971894,1707893443596,-1101.317464,0.00023,2]
[313971895,1707893443639,-10458.03584435,0.00023,2]
[313971905,1707893446305,-405.81528365,0.00022898,2]
[313971906,1707893446318,-69.59601635,0.00022898,2]
[313971907,1707893446327,-565.78959574,0.00023,2]
[313971908,1707893446639,-17434.12332716,0.00023,2]
[313971909,1707893446656,-2551.42731682,0.00023,2]
[313971910,1707893446671,-1973.8570105,0.00023,2]
[313971911,1707893446685,-2434.73075,0.00023,2]
[313971912,1707893446847,-38650.22197218,0.00023,2]
[313971913,1707893446888,-974.34839481,0.000229,2]
[313971914,1707893446937,-1220.96270519,0.000229,2]
[313971915,1707893446946,-14688.18817269,0.00023,2]
[313971916,1707893446959,-5000.0,0.00023,2]
[313971917,1707893446973,-3828.72717095,0.00023,2]
[313971918,1707893446994,-2173.54056389,0.00023,2]
[313971920,1707893474798,1000.0,0.00022966,7]
[313971925,1707893725786,272.23,0.0002024,2]
[313971926,1707894006215,171.36,0.00021855,2]
[313971927,1707894007783,2000.0,0.00021855,2]
[313971928,1707894072819,264.69,0.0002175,2]
[313971929,1707894181519,9552.39,0.00021675,2]
[313971932,1707894246667,280.47,0.00019764,2]
[313971933,1707894274668,180.15,0.00021661,2]
[313971934,1707894366309,666.32,0.00021688,2]
[313971935,1707894411371,840.0,0.00021684,2]
[313971936,1707894412220,250.0,0.00021877,2]
[313971937,1707894433641,-258.2382872,0.00021917,2]
[313971938,1707894433663,-250.0,0.00021918,2]
[313971939,1707894433688,-152.94,0.00021959,2]
[313971940,1707894433713,-160.0,0.0002196,2]
[313971941,1707894433736,-150.0,0.00022,2]
[313971942,1707894433757,-258.62,0.00022,2]
[313971944,1707894449340,150.0,0.00022,2]
[313971945,1707894456749,511.62633769,0.00022,2]
[313971946,1707894494155,108.57537511,0.00021877,2]
[313971947,1707894494180,1891.42462489,0.00021877,2]
[313971948,1707894500217,5216.25,0.00025,10]
[313971949,1707894516912,108.57537511,0.00021824,2]
[313971950,1707894516936,178.30462489,0.00021824,2]
[313971951,1707894520996,272.83543299,0.00022,2]
[313971952,1707894543487,152.74,0.00021988,2]
[313971962,1707894550952,250.0,0.00021918,2]
[313971997,1707894634374,-155.0,0.00022027,2]
[313971998,1707894634387,-280.47,0.00022028,2]
[313971999,1707894634400,-152.74,0.0002207,2]
[313972000,1707894634412,-55.25267268,0.000221,2]
[313972001,1707894634451,-101.66757508,0.000221,2]
[313972002,1707894634463,-152.74,0.00022151,2]
[313972003,1707894634475,-1833.18125221,0.00022199,2]
[313972004,1707894634507,-1454.4138098,0.00022199,2]
[313972005,1707894634523,-1770.49891857,0.00022199,2]
[313972006,1707894634536,-165.43664341,0.000222,2]
[313972007,1707894634547,-170.2,0.00022202,2]
[313972008,1707894634557,-152.74,0.00022233,2]
[313972009,1707894634567,-503.0,0.00022305,2]
[313972010,1707894634576,-1752.39528177,0.00022308,2]
[313972011,1707894634586,-152.74,0.00022315,2]
[313972012,1707894634596,-179.78,0.0002235,2]
[313972013,1707894634605,-152.74,0.00022397,2]
[313972014,1707894634614,-152.74,0.00022479,2]
[313972015,1707894634625,-500.0,0.000225,2]
[313972017,1707894634634,-288.26203851,0.00022538,2]
[313972019,1707894634644,-152.74,0.00022561,2]
[313972021,1707894634653,-166.88,0.00022569,2]
[313972023,1707894634662,-152.74,0.00022642,2]
[313972025,1707894634671,-152.74,0.00022724,2]
[313972027,1707894634680,-152.74,0.00022806,2]
[313972056,1707894635027,-152.74,0.00022888,2]
[313972057,1707894635055,-7372.9292,0.000229,2]
[313972058,1707894635071,-2500.0,0.000229,2]
[313972059,1707894635081,-1000.0,0.000229,2]
[313972060,1707894635090,-39645.60748876,0.000229,2]
[313972061,1707894635102,-1169.53619494,0.000229,2]
[313972062,1707894635138,-3815.10117222,0.000229,2]
[313972063,1707894635263,-363.36373079,0.000229,2]
[313972071,1707894637514,-700.0,0.000229,2]
[313972072,1707894637571,-6329.94121329,0.000229,2]
[313972073,1707894637581,-1000.0,0.000229,2]
[313972074,1707894637590,-344.80377558,0.000229,2]
[313972075,1707894637600,-2345.9006,0.000229,2]
[313972076,1707894637609,-5953.25550655,0.000229,2]
[313972077,1707894637619,-257.610738,0.000229,2]
[313972078,1707894637628,-284.1787887,0.000229,2]
[313972079,1707894637638,-150.0,0.00022927,2]
[313972080,1707894637648,-800.0,0.00022959,2]
[313972081,1707894637657,-7517.58153351,0.00022959,2]
[313972082,1707894637688,-10256.5233798,0.00022959,2]
[313972083,1707894637698,-152.74,0.0002297,2]
[313972084,1707894637707,-150.0,0.0002297,2]
[313972085,1707894637717,-216.69297719,0.00022975,2]
[313972086,1707894637726,-841.05,0.0002299,2]
[313972087,1707894637735,-418.61,0.0002299,2]
[313972088,1707894637746,-418.61,0.0002299,2]
[313972089,1707894637756,-418.61,0.0002299,2]
[313972090,1707894637766,-418.61,0.0002299,2]
[313972091,1707894637775,-150.0,0.00022994,2]
[313972092,1707894637784,-736.28183122,0.00022998,2]
[313972093,1707894637794,-366.13765275,0.00022998,2]
[313972094,1707894637804,-224.72608198,0.00022998,2]
[313972095,1707894637814,-179.0571059,0.00022998,2]
[313972096,1707894637823,-158.35778077,0.00022998,2]
[313972097,1707894637833,-1051.3255843,0.00022998,2]
[313972098,1707894637843,-2038.74197484,0.00022998,2]
[313972100,1707894637853,-526.97854074,0.00022998,2]
[313972102,1707894637862,-229.63290443,0.00022998,2]
[313972103,1707894637871,-371.12767226,0.00022998,2]
[313972104,1707894637880,-1033.70060886,0.00022998,2]
[313972105,1707894637889,-404.15157209,0.00022998,2]
[313972106,1707894637899,-290.58241428,0.00022998,2]
[313972107,1707894637908,-2646.93578928,0.00022998,2]
[313972108,1707894637917,-775.53574364,0.00022998,2]
[313972109,1707894637926,-2917.18273564,0.00022998,2]
[313972110,1707894637936,-464.39838721,0.00022998,2]
[313972111,1707894637945,-190.74309327,0.00022998,2]
[313972112,1707894637955,-903.28324547,0.00022998,2]
[313972114,1707894637964,-2153.62815576,0.00022999,2]
[313972117,1707894637974,-3264.74386686,0.00022999,2]
[313972120,1707894637983,-450.52232038,0.00022999,2]
[313972122,1707894637992,-354.79872589,0.00022999,2]
[313972124,1707894638001,-24080.83773401,0.00022999,2]
[313972126,1707894638010,-102932.31258562,0.00023,3]
[313972127,1707894638020,-187.04733421,0.00023,3]
[313972129,1707894638029,-2233476.1861169,0.00023,2]
[313972131,1707894638038,-2104834.11956115,0.00023,2]
[313972133,1707894638048,-273.08993971,0.00023,2]
[313972135,1707894638057,-5096.87378707,0.00023,2]
[313972136,1707894638067,-2821.79761459,0.00023,2]
[313972137,1707894638076,-2163412.70814916,0.00023,2]
[313972138,1707894638089,-2850.93961544,0.00023,2]
[313972139,1707894638121,-7153.31194208,0.00023,2]
[313972140,1707894640111,-4999.78505086,0.00023,2]
[313972141,1707894640123,-17719.25464481,0.00023,2]
[313972142,1707894640134,-618.48491259,0.00023,2]
[313972143,1707894640150,-384.68180504,0.00023,2]
[313972144,1707894640173,-14958.29291227,0.00023,2]
[313972145,1707894640185,-523.270036,0.00023,2]
[313972153,1707894642646,-3558.23571273,0.00023,2]
[313972154,1707894642658,-432.12741272,0.00023,2]
[313972155,1707894642701,-431.23497344,0.00023,2]
[313972156,1707894642760,-5337.55690495,0.00023,2]
[313972174,1707894645739,-834.77,0.0002299,2]
[313972175,1707894645752,-264.85781703,0.00022999,2]
[313972176,1707894645762,-11250.46631341,0.00023,2]
[313972177,1707894645775,-1212.0,0.00023,2]
[313972178,1707894645801,-3399.72725505,0.00023,2]
[313972179,1707894645879,-192624.40065914,0.00023,2]
[313972206,1707894686318,341.44,0.00021014,2]
[313972210,1707894795931,563.00832416,0.00020466,2]
[313972211,1707895020915,2000.0,0.00021941,2]
[313972212,1707895023869,206.0,0.00021325,2]
[313972213,1707895063958,153.20004051,0.00022,2]
[313972214,1707895150927,3987.82779254,0.00022,2]
[313972215,1707895150951,1109.04599453,0.00022,2]
[313972216,1707895156886,273.08993971,0.00022,2]
[313972217,1707895179766,2821.79761459,0.00022,2]
[313972218,1707895233244,173.68,0.00021818,2]
[313972219,1707895291447,200.0,0.00021648,2]
[313972220,1707895292345,343.18,0.0001973,2]
[313972221,1707895292721,343.18,0.00021994,2]
[313972222,1707895336511,1987.50260838,0.00021664,2]
[313972223,1707895336534,7251.47615721,0.00021664,2]
[313972224,1707895336558,9361.92123441,0.00021664,2]
[313972225,1707895341495,796.91,0.00021664,2]
[313972226,1707895379617,250.0,0.00021619,2]
[313972227,1707895476138,2000.0,0.00021627,2]
[313972228,1707895478043,152.65,0.00021789,2]
[313972230,1707895579888,258.12,0.00021629,2]
[313972232,1707895678617,166.81580364,0.0002192,2]
[313972233,1707895721958,325.79,0.00019577,2]
[313972234,1707895722226,325.79,0.00021841,2]
[313972240,1707895792570,96429.0,0.00021902,2]
[313972265,1707895831713,-362.01083285,0.00022006,2]
[313972268,1707895831729,-999.87426,0.00022006,2]
[313972270,1707895831745,-301.52504693,0.00022006,2]
[313972272,1707895831761,-256.43764521,0.00022006,2]
[313972274,1707895831776,-998.55325321,0.00022006,2]
[313972276,1707895831788,-155.0,0.00022007,2]